bitfinex/quotes_BTCUSD_20241211
["timestamp","ask_amount","ask_price","bid_price","bid_amount"]
[1733910067876,0.10157612,97950.0,97949.0,0.007]
[1733910068097,0.10157612,97950.0,97938.0,0.023]
[1733910068098,0.204187,97949.0,97938.0,0.023]
[1733910068306,0.00712675,97948.0,97940.0,0.023]
[1733910068527,0.21131875,97947.0,97941.0,0.10532524]
[1733910068755,0.204201,97943.0,97941.0,0.00665352]
[1733910069004,0.13802675,97942.0,97941.0,0.00665352]
[1733910069215,0.13802675,97942.0,97920.0,0.0001716]
[1733910069443,0.204206,97940.0,97938.0,0.002]
[1733910069668,0.00712675,97939.0,97938.0,0.002]
[1733910069874,0.00712675,97939.0,97920.0,0.0001716]
[1733910070082,0.204225,97931.0,97930.0,0.01039361]
[1733910070329,0.00712675,97938.0,97930.0,0.01039361]
[1733910070330,0.1309,97942.0,97930.0,0.0001716]
[1733910070548,0.408436,97935.0,97930.0,0.0001716]
[1733910070771,0.00711609,97934.0,97931.0,0.00665762]
[1733910070986,0.21133709,97933.0,97930.0,0.0001716]
[1733910071209,0.00711609,97932.0,97930.0,0.0011716]
[1733910071453,0.00711609,97931.0,97930.0,0.0011716]
[1733910071664,0.00711609,97931.0,97930.0,0.0001716]
[1733910072308,0.204225,97931.0,97930.0,0.0061716]
[1733910072524,0.2113356,97931.0,97930.0,0.0001716]
[1733910072733,0.2113356,97931.0,97930.0,0.0071716]
[1733910073156,0.204225,97931.0,97930.0,0.0071716]
[1733910073369,0.21133291,97931.0,97930.0,0.0071716]
[1733910073585,0.28813291,97931.0,97930.0,0.0101716]
[1733910074441,0.33613291,97931.0,97930.0,0.0101716]
[1733910082446,0.33612087,97931.0,97930.0,0.0101716]
[1733910085916,0.33611769,97931.0,97930.0,0.0101716]
[1733910090456,0.347466,97931.0,97930.0,0.0101716]
[1733910090904,0.347466,97931.0,97930.0,0.0071716]
[1733910091114,0.204246,97921.0,97920.0,0.0001716]
[1733910091326,0.298387,97921.0,97920.0,0.0001716]
[1733910091972,0.28703869,97921.0,97920.0,0.0001716]
[1733910092391,0.298387,97921.0,97920.0,0.0001716]
[1733910092812,0.298387,97921.0,97920.0,0.0041716]
[1733910094099,0.346387,97921.0,97920.0,0.0041716]
[1733910094967,0.346387,97921.0,97920.0,0.0011716]
[1733910095396,0.346387,97921.0,97920.0,0.0021716]
[1733910095607,0.346387,97921.0,97920.0,0.0001716]
[1733910095814,0.346387,97921.0,97920.0,0.0021716]
[1733910096444,0.346387,97921.0,97920.0,0.0011716]
[1733910096860,0.346387,97921.0,97920.0,0.0021716]
[1733910098622,0.34641069,97921.0,97920.0,0.0021716]
[1733910101860,0.34642719,97921.0,97920.0,0.0021716]
[1733910106381,0.204264,97913.0,97902.0,0.0832]
[1733910106586,0.01848119,97912.0,97902.0,0.0832]
[1733910106791,0.01848119,97911.0,97902.0,0.0832]
[1733910107685,0.01848119,97911.0,97910.0,0.00023361]
[1733910107894,0.00710815,97911.0,97910.0,0.00623361]
[1733910108111,0.01848119,97911.0,97910.0,0.00823361]
[1733910108330,0.0071087,97911.0,97910.0,0.00823361]
[1733910108767,0.0071087,97911.0,97910.0,0.01296208]
[1733910108973,0.0071087,97911.0,97910.0,0.01596208]
[1733910111563,0.00708747,97911.0,97910.0,0.01596208]
[1733910123648,0.204232,97928.0,97910.0,0.01596208]
[1733910123880,0.0113537,97917.0,97910.0,0.01596208]
[1733910124085,0.20424,97924.0,97910.0,0.01596208]
[1733910124086,0.00709606,97911.0,97910.0,0.01596208]
[1733910124510,0.01419214,97911.0,97910.0,0.01596208]
[1733910124728,0.01419214,97911.0,97910.0,0.00996208]
[1733910125181,0.01419214,97911.0,97910.0,0.01296208]
[1733910125390,0.01419214,97911.0,97910.0,0.00996208]
[1733910125594,0.00709608,97911.0,97910.0,0.00996208]
[1733910126205,0.00709608,97911.0,97910.0,0.00696208]
[1733910126641,0.00709608,97911.0,97910.0,0.01296208]
[1733910127870,0.00709608,97911.0,97910.0,0.01596208]
[1733910133475,0.204248,97920.0,97910.0,0.01596208]
[1733910133678,0.00710203,97911.0,97910.0,0.01596208]
[1733910134456,0.00710203,97911.0,97910.0,0.00696208]
[1733910134675,0.00710203,97911.0,97910.0,0.00896208]
[1733910134888,0.00710203,97911.0,97910.0,0.00996208]
[1733910135099,0.00710203,97911.0,97910.0,0.00796208]
[1733910136136,0.00710203,97911.0,97910.0,0.00696208]
[1733910136341,0.0184738,97911.0,97910.0,0.00696208]
[1733910136554,0.0184738,97911.0,97910.0,0.01596208]
[1733910136764,0.01847888,97911.0,97910.0,0.01596208]
[1733910140129,0.0184892,97911.0,97910.0,0.01596208]
[1733910140570,0.0752,97921.0,97910.0,0.01596208]
[1733910140778,0.0752,97921.0,97911.0,0.204267]
[1733910141184,0.0752,97921.0,97912.0,0.0067131]
[1733910142726,0.20424,97924.0,97912.0,0.0067131]
[1733910143522,0.20424,97924.0,97912.0,0.0077131]
[1733910143924,0.20424,97924.0,97912.0,0.0087131]
[1733910144344,0.20424,97924.0,97912.0,0.0067131]
[1733910144581,0.0785,97934.0,97914.0,0.20426]
[1733910144757,0.0785,97934.0,97921.0,0.204245]
[1733910144934,0.408426,97937.0,97921.0,0.204245]
[1733910145141,8.58e-05,97930.0,97922.0,0.00670901]
[1733910146217,0.0020858,97930.0,97922.0,0.00670901]
[1733910146416,0.0010858,97930.0,97922.0,0.00670901]
[1733910146905,0.0010858,97930.0,97909.0,0.38798437]
[1733910146906,0.077,97929.0,97908.0,0.10200338]
[1733910147129,0.077,97929.0,97923.0,0.00670274]
[1733910147360,0.204256,97917.0,97906.0,0.09186151]
[1733910148205,0.204256,97917.0,97911.0,0.00670195]
[1733910148437,0.0494,97928.0,97906.0,0.09186151]
[1733910148438,0.408496,97920.0,97906.0,0.09186151]
[1733910148641,0.20425,97919.0,97911.0,0.00670195]
[1733910148842,0.4085,97919.0,97906.0,0.09186151]
[1733910149053,0.4085,97919.0,97911.0,0.00670195]
[1733910149268,0.204263,97913.0,97911.0,0.00670195]
[1733910149474,0.204263,97913.0,97910.0,0.00223361]
[1733910149680,0.408526,97913.0,97910.0,0.00223361]
[1733910149894,0.408526,97913.0,97910.0,0.00023361]
[1733910150127,0.0451,97912.0,97911.0,0.003]
[1733910150376,0.0451,97912.0,97910.0,0.00023361]
[1733910150637,0.204267,97911.0,97910.0,0.00223361]
[1733910151070,0.204267,97911.0,97910.0,0.00023361]
[1733910151474,0.21131746,97911.0,97910.0,0.00023361]
[1733910151686,0.21131746,97911.0,97910.0,0.00523361]
[1733910151913,0.21131746,97911.0,97910.0,0.00023361]
[1733910153008,0.21431746,97911.0,97910.0,0.00023361]
[1733910153216,0.21431746,97911.0,97910.0,0.00323361]
[1733910153433,0.97731632,97911.0,97910.0,0.00323361]
[1733910153649,0.482288,97901.0,97900.0,0.0001716]
[1733910153857,0.68592839,97901.0,97900.0,0.0001716]
[1733910154077,0.53592839,97901.0,97900.0,0.0001716]
[1733910154281,0.92410253,97901.0,97900.0,0.0001716]
[1733910154496,0.5946637,97901.0,97900.0,0.0001716]
[1733910154700,0.73143522,97901.0,97900.0,0.0001716]
[1733910155446,0.5946637,97901.0,97900.0,0.0001716]
[1733910156046,0.7446637,97901.0,97900.0,0.0001716]
[1733910156446,0.5946637,97901.0,97900.0,0.0001716]
[1733910156677,0.76485937,97901.0,97900.0,0.0001716]
[1733910156890,0.77495282,97901.0,97900.0,0.0001716]
[1733910159481,0.77492056,97901.0,97900.0,0.0001716]
[1733910161445,0.62492056,97901.0,97900.0,0.0001716]
[1733910167186,0.35950187,97901.0,97900.0,0.0001716]
[1733910167387,0.23150187,97901.0,97900.0,0.0001716]
[1733910167586,0.2113062,97901.0,97900.0,0.0001716]
[1733910168123,0.204288,97901.0,97900.0,0.0001716]
[1733910168394,0.21130185,97901.0,97900.0,0.0001716]
[1733910168594,0.204288,97901.0,97900.0,0.0001716]
[1733910169476,0.21130121,97901.0,97900.0,0.0001716]
[1733910169885,0.204288,97901.0,97900.0,0.0001716]
[1733910170084,0.00701323,97902.0,97900.0,0.0001716]
[1733910170317,0.204272,97909.0,97901.0,0.00676633]
[1733910170432,0.204272,97909.0,97900.0,0.0001716]
[1733910170652,0.204272,97909.0,97901.0,0.00675698]
[1733910171314,0.001,97902.0,97901.0,0.00675698]
[1733910171720,0.002,97902.0,97901.0,0.00675698]
[1733910171919,0.001,97902.0,97901.0,0.00675698]
[1733910172356,0.001,97902.0,97900.0,0.0001716]
[1733910172568,0.204278,97906.0,97900.0,0.0001716]
[1733910172569,0.204288,97901.0,97900.0,0.0001716]
[1733910173186,0.21130379,97901.0,97900.0,0.0001716]
[1733910173384,0.204288,97901.0,97900.0,0.0001716]
[1733910173805,0.205288,97901.0,97900.0,0.0001716]
[1733910175392,0.21230655,97901.0,97900.0,0.0001716]
[1733910181509,0.205288,97901.0,97900.0,0.0001716]
[1733910182028,0.21232421,97901.0,97900.0,0.0001716]
[1733910191016,0.00803621,97901.0,97900.0,0.0816716]
[1733910191527,0.00803621,97901.0,97900.0,0.08796136]
[1733910191770,0.001,97901.0,97900.0,0.08796136]
[1733910192006,0.00803621,97901.0,97900.0,0.08796136]
[1733910199433,0.00803621,97901.0,97900.0,0.00646136]
[1733910204327,0.001,97901.0,97900.0,0.00646136]
[1733910204534,0.00805372,97901.0,97900.0,0.00646136]
[1733910209431,0.00705372,97901.0,97900.0,0.00646136]
[1733910209644,0.00805372,97901.0,97900.0,0.00646136]
[1733910210303,0.00805372,97901.0,97900.0,0.05196136]
[1733910210712,0.00805372,97901.0,97900.0,0.05396136]
[1733910210917,0.00805269,97901.0,97900.0,0.05396136]
[1733910211130,0.00705269,97901.0,97900.0,0.05396136]
[1733910211555,8.58e-05,97910.0,97901.0,0.204288]
[1733910211772,0.00705258,97909.0,97901.0,0.204288]
[1733910211954,0.00705258,97908.0,97902.0,0.00627892]
[1733910212215,0.00705258,97907.0,97902.0,0.00627892]
[1733910212419,0.00705258,97906.0,97902.0,0.00627892]
[1733910212649,0.00705258,97905.0,97902.0,0.00627892]
[1733910212841,8.58e-05,97910.0,97903.0,0.00627394]
[1733910212842,0.00705258,97904.0,97903.0,0.00627394]
[1733910213253,0.00705258,97904.0,97901.0,0.204288]
[1733910213459,0.0040858,97910.0,97903.0,0.00627394]
[1733910213663,0.00705232,97909.0,97902.0,0.00627435]
[1733910213866,0.0040858,97910.0,97901.0,0.204288]
[1733910213867,0.00705232,97908.0,97901.0,0.204288]
[1733910214038,0.00705232,97907.0,97903.0,0.00626893]
[1733910214245,0.00705232,97907.0,97903.0,0.002]
[1733910214449,0.00805232,97906.0,97901.0,0.204288]
[1733910214650,0.00705232,97905.0,97901.0,0.204288]
[1733910214892,0.00705232,97904.0,97902.0,0.00626934]
[1733910215169,0.00705232,97903.0,97901.0,0.204288]
[1733910215378,0.00705232,97902.0,97901.0,0.204288]
[1733910215638,0.00705232,97902.0,97900.0,0.0001716]
[1733910215848,8.58e-05,97910.0,97900.0,0.0001716]
[1733910215849,0.204288,97901.0,97900.0,0.0001716]
[1733910216056,0.21133978,97901.0,97900.0,0.0001716]
[1733910217129,0.21133978,97901.0,97900.0,0.0021716]
[1733910217339,0.21133978,97901.0,97900.0,0.0001716]
[1733910217540,0.21134232,97901.0,97900.0,0.0001716]
[1733910218172,0.21234232,97901.0,97900.0,0.0001716]
[1733910220320,0.31766756,97901.0,97900.0,0.0001716]
[1733910220533,0.39346756,97901.0,97900.0,0.0001716]
[1733910220750,0.38641324,97901.0,97900.0,0.0001716]
[1733910220961,0.39346658,97901.0,97900.0,0.0001716]
[1733910222702,0.54346658,97901.0,97900.0,0.0001716]
[1733910223365,0.56441331,97901.0,97900.0,0.0001716]
[1733910223794,0.56341331,97901.0,97900.0,0.0001716]
[1733910224024,0.56641331,97901.0,97900.0,0.0001716]
[1733910224226,0.57341331,97901.0,97900.0,0.0011716]
[1733910224429,0.57041331,97901.0,97900.0,0.0011716]
[1733910224834,0.57341331,97901.0,97900.0,0.0011716]
[1733910227931,0.204308,97891.0,97890.0,0.0001716]
[1733910228137,0.32794924,97891.0,97890.0,0.0001716]
[1733910229036,0.55704924,97891.0,97890.0,0.0001716]
[1733910229241,0.60524924,97891.0,97890.0,0.0001716]
[1733910229900,0.60924924,97891.0,97890.0,0.0001716]
[1733910230552,0.76931076,97891.0,97890.0,0.0001716]
[1733910230767,0.75099476,97891.0,97890.0,0.0001716]
[1733910231207,0.77630195,97891.0,97890.0,0.0001716]
[1733910235772,0.92630195,97891.0,97890.0,0.0001716]
[1733910235999,1.03140524,97891.0,97890.0,0.0001716]
[1733910236155,1.02437548,97891.0,97890.0,0.0001716]
[1733910236880,0.91927219,97891.0,97890.0,0.0001716]
[1733910237870,0.46927219,97891.0,97890.0,0.0001716]
[1733910238282,0.34197219,97891.0,97890.0,0.0001716]
[1733910238600,0.33191067,97891.0,97890.0,0.0001716]
[1733910240197,0.22658543,97891.0,97890.0,0.0001716]
[1733910240568,0.21533778,97891.0,97890.0,0.0001716]
[1733910240798,0.21533226,97891.0,97890.0,0.0001716]
[1733910243515,0.22657107,97891.0,97890.0,0.0001716]
[1733910243711,0.21533226,97891.0,97890.0,0.0001716]
[1733910243915,0.22657107,97891.0,97890.0,0.0001716]
[1733910245288,0.22658991,97891.0,97890.0,0.0001716]
[1733910245490,0.33191515,97891.0,97890.0,0.0001716]
[1733910245691,0.55811515,97891.0,97890.0,0.0001716]
[1733910246519,0.33191515,97891.0,97890.0,0.0001716]
[1733910247142,0.22658991,97891.0,97890.0,0.0001716]
[1733910251043,0.02228191,97891.0,97890.0,0.0001716]
[1733910251655,0.02228191,97891.0,97890.0,0.00605789]
[1733910251867,0.02228191,97891.0,97890.0,0.0001716]
[1733910253527,0.02228191,97891.0,97890.0,0.0752716]
[1733910253528,0.0110315,97891.0,97890.0,0.0752716]
[1733910253735,0.0110315,97891.0,97890.0,0.08115789]
[1733910255439,0.0110315,97891.0,97890.0,0.00605789]
[1733910255855,0.0110389,97891.0,97890.0,0.0001716]
[1733910256464,0.004,97891.0,97890.0,0.0001716]
[1733910256797,0.01103775,97891.0,97890.0,0.0001716]
[1733910257407,0.004,97891.0,97890.0,0.0001716]
[1733910257792,0.01103538,97891.0,97890.0,0.0001716]
[1733910259276,0.01103529,97891.0,97890.0,0.0001716]
[1733910262845,0.01103529,97891.0,97890.0,0.00604247]
[1733910263054,0.01103529,97891.0,97890.0,0.0001716]
[1733910263262,0.01103529,97891.0,97890.0,0.00604359]
[1733910263463,0.01103529,97891.0,97890.0,0.0001716]
[1733910263645,0.01103529,97891.0,97890.0,0.00604359]
[1733910263877,0.01103529,97891.0,97890.0,0.0001716]
[1733910264080,0.01103529,97891.0,97890.0,0.00604359]
[1733910264289,0.01103529,97891.0,97890.0,0.0001716]
[1733910264466,0.01103529,97891.0,97890.0,0.00604359]
[1733910264699,0.01103529,97891.0,97890.0,0.0001716]
[1733910264881,0.01103529,97891.0,97890.0,0.00604359]
[1733910265112,0.01103529,97891.0,97890.0,0.0001716]
[1733910265325,0.01103529,97891.0,97890.0,0.00604359]
[1733910265529,0.01103529,97891.0,97890.0,0.0001716]
[1733910265785,0.01103529,97891.0,97890.0,0.00604359]
[1733910265992,0.01103529,97891.0,97890.0,0.0001716]
[1733910266249,0.01103529,97891.0,97890.0,0.00604359]
[1733910269066,0.01104175,97891.0,97890.0,0.00604359]
[1733910271192,0.01104175,97891.0,97890.0,0.21035359]
[1733910272621,0.01104175,97891.0,97890.0,0.31595359]
[1733910272821,0.004,97891.0,97890.0,0.36525359]
[1733910273479,0.0010812,97910.0,97903.0,0.204283]
[1733910273480,0.01126941,97906.0,97903.0,0.204283]
[1733910273706,0.01831302,97905.0,97903.0,0.204283]
[1733910273890,0.0010812,97910.0,97903.0,0.204283]
[1733910273891,8.58e-05,97910.0,97904.0,0.00585559]
[1733910274057,0.01831343,97909.0,97904.0,0.00585559]
[1733910274260,0.01831343,97908.0,97903.0,0.204283]
[1733910274476,0.01831343,97907.0,97905.0,0.00585518]
[1733910274815,0.02231343,97906.0,97904.0,0.00585559]
[1733910274999,0.01831343,97905.0,97903.0,0.204283]
[1733910275226,0.01831343,97904.0,97903.0,0.204283]
[1733910275544,0.0030858,97910.0,97903.0,0.306483]
[1733910275841,0.002,97907.0,97905.0,0.204279]
[1733910276249,0.00704411,97906.0,97905.0,0.204279]
[1733910278349,0.00704411,97906.0,97905.0,0.205279]
[1733910279138,8.58e-05,97910.0,97905.0,0.205279]
[1733910279348,8.58e-05,97910.0,97907.0,0.204274]
[1733910279540,0.00704354,97909.0,97907.0,0.204274]
[1733910279742,0.00704354,97908.0,97907.0,0.204274]
[1733910281807,0.00804354,97908.0,97907.0,0.204274]
[1733910286025,0.00704354,97908.0,97907.0,0.204274]
[1733910286228,8.58e-05,97910.0,97907.0,0.204274]
[1733910286434,0.001,97908.0,97907.0,0.204274]
[1733910286788,8.58e-05,97910.0,97907.0,0.204274]
[1733910287015,0.00704168,97909.0,97907.0,0.204274]
[1733910287212,8.58e-05,97910.0,97907.0,0.205274]
[1733910287420,0.00704125,97909.0,97907.0,0.204274]
[1733910287595,8.58e-05,97910.0,97907.0,0.204274]
[1733910287796,0.00704229,97909.0,97907.0,0.205274]
[1733910288032,8.58e-05,97910.0,97907.0,0.204274]
[1733910288225,0.00704282,97909.0,97907.0,0.204274]
[1733910288556,8.58e-05,97910.0,97907.0,0.205274]
[1733910288968,0.00704288,97909.0,97907.0,0.205274]
[1733910289180,8.58e-05,97910.0,97907.0,0.409548]
[1733910289384,0.00704278,97909.0,97907.0,0.205274]
[1733910289528,8.58e-05,97910.0,97907.0,0.204274]
[1733910289730,0.00704305,97909.0,97907.0,0.204274]
[1733910289960,8.58e-05,97910.0,97907.0,0.206274]
[1733910290113,0.00704306,97909.0,97907.0,0.206274]
[1733910290343,8.58e-05,97910.0,97907.0,0.206274]
[1733910290626,0.00704335,97909.0,97907.0,0.206274]
[1733910290888,8.58e-05,97910.0,97907.0,0.206274]
[1733910291097,0.00704312,97909.0,97908.0,0.00817061]
[1733910291721,0.00704312,97909.0,97907.0,0.001]
[1733910291968,8.58e-05,97910.0,97908.0,0.00817061]
[1733910292179,0.0070424,97909.0,97908.0,0.00817061]
[1733910292802,0.0070424,97909.0,97904.0,0.227279]
[1733910293005,0.0070424,97908.0,97906.0,0.204277]
[1733910293241,0.003,97909.0,97907.0,0.00817118]
[1733910293463,0.00704284,97908.0,97907.0,0.00817118]
[1733910295901,0.00704284,97908.0,97903.0,0.01039201]
[1733910296089,0.00704284,97907.0,97901.0,0.227288]
[1733910296306,8.58e-05,97910.0,97904.0,0.0081729]
[1733910296505,0.00704355,97909.0,97901.0,0.227288]
[1733910296753,0.00904355,97908.0,97905.0,0.00817233]
[1733910296957,0.00704355,97907.0,97901.0,0.227288]
[1733910297133,0.001,97908.0,97906.0,0.00817175]
[1733910297335,0.0080446,97907.0,97906.0,0.204276]
[1733910297533,0.0070446,97907.0,97906.0,0.204276]
[1733910298711,0.00704591,97907.0,97906.0,0.204276]
[1733910299350,0.00804591,97907.0,97906.0,0.227276]
[1733910299693,0.00804591,97907.0,97906.0,0.56440124]
[1733910299694,0.00704591,97907.0,97906.0,0.56440124]
[1733910299845,0.001,97909.0,97908.0,0.377273]
[1733910300051,8.58e-05,97910.0,97909.0,0.173]
[1733910300253,8.58e-05,97910.0,97909.0,0.37108145]
[1733910300452,8.58e-05,97910.0,97909.0,0.37006022]
[1733910301293,8.58e-05,97910.0,97909.0,0.37106022]
[1733910301497,8.58e-05,97910.0,97909.0,0.37406022]
[1733910302437,8.58e-05,97910.0,97909.0,0.28232524]
[1733910302639,8.58e-05,97910.0,97909.0,0.28132524]
[1733910302875,8.58e-05,97910.0,97909.0,0.27832524]
[1733910303079,8.58e-05,97910.0,97909.0,0.28032524]
[1733910303288,8.58e-05,97910.0,97909.0,0.28632524]
[1733910304386,8.58e-05,97910.0,97909.0,0.181]
[1733910304624,8.58e-05,97910.0,97909.0,0.008]
[1733910304839,0.21139574,97910.0,97909.0,0.008]
[1733910305052,0.3057597,97910.0,97909.0,0.008]
[1733910305260,0.1014907,97910.0,97909.0,0.008]
[1733910305575,0.1014907,97910.0,97909.0,0.006]
[1733910305776,0.1014907,97910.0,97909.0,0.001]
[1733910306175,0.0831858,97910.0,97909.0,0.004]
[1733910306379,0.10149313,97910.0,97901.0,0.204287]
[1733910306590,0.01830733,97909.0,97902.0,0.00571593]
[1733910306829,0.01830733,97908.0,97902.0,0.00571593]
[1733910307038,0.01830733,97907.0,97902.0,0.00571593]
[1733910307238,0.01830733,97906.0,97901.0,0.204287]
[1733910307441,0.01830733,97905.0,97902.0,0.00571593]
[1733910307649,0.00704128,97904.0,97901.0,0.204287]
[1733910307854,0.00704128,97903.0,97902.0,0.00571593]
[1733910308088,0.00704128,97903.0,97901.0,0.204287]
[1733910308292,0.01126561,97908.0,97902.0,0.00571593]
[1733910308508,0.0183063,97907.0,97902.0,0.00571593]
[1733910308713,0.0183063,97906.0,97900.0,0.0040242]
[1733910308920,0.0659063,97905.0,97900.0,0.0040242]
[1733910309131,0.2225873,97904.0,97901.0,0.00587956]
[1733910309339,0.2225873,97904.0,97900.0,0.0040242]
[1733910309340,0.284185,97902.0,97900.0,0.0040242]
[1733910309547,0.0183063,97901.0,97900.0,0.0040242]
[1733910310724,0.0203063,97901.0,97900.0,0.0040242]
[1733910310965,0.005,97901.0,97900.0,0.0040242]
[1733910311172,0.02328767,97901.0,97900.0,0.0040242]
[1733910311936,0.02028767,97901.0,97900.0,0.0040242]
[1733910312132,0.01828767,97901.0,97900.0,0.0040242]
[1733910312338,0.02328767,97901.0,97900.0,0.0040242]
[1733910312552,0.01828767,97901.0,97900.0,0.0040242]
[1733910312784,0.02028767,97901.0,97900.0,0.0040242]
[1733910312981,0.02528767,97901.0,97900.0,0.0040242]
[1733910313182,0.02028767,97901.0,97900.0,0.0040242]
[1733910313591,0.02528767,97901.0,97900.0,0.0040242]
[1733910314250,0.02528468,97901.0,97900.0,0.0040242]
[1733910315507,0.01403257,97901.0,97900.0,0.0040242]
[1733910315707,0.01403257,97901.0,97900.0,0.00991634]
[1733910315928,0.01203257,97901.0,97900.0,0.0040242]
[1733910316131,0.01203257,97901.0,97900.0,0.00993258]
[1733910316352,0.00903257,97901.0,97900.0,0.0040242]
[1733910316555,0.01403257,97901.0,97900.0,0.0104417]
[1733910316759,0.01203257,97901.0,97900.0,0.0040242]
[1733910316961,0.00703257,97901.0,97900.0,0.0104417]
[1733910317224,0.01003257,97901.0,97900.0,0.0040242]
[1733910317359,0.01003134,97901.0,97900.0,0.0104417]
[1733910317570,0.01003134,97901.0,97900.0,0.0040242]
[1733910317768,0.01003134,97901.0,97900.0,0.0104417]
[1733910321097,0.003,97901.0,97900.0,0.35699284]
[1733910321264,0.003,97901.0,97900.0,0.5571354]
[1733910321440,0.003,97901.0,97900.0,0.7071354]
[1733910321846,0.002,97901.0,97900.0,0.7071354]
[1733910322046,8.58e-05,97910.0,97909.0,0.204271]
[1733910322280,8.58e-05,97910.0,97909.0,0.33361748]
[1733910322431,8.58e-05,97910.0,97909.0,0.43002056]
[1733910323589,8.58e-05,97910.0,97909.0,0.56002056]
[1733910323925,8.58e-05,97910.0,97909.0,0.94457902]
[1733910324253,8.58e-05,97910.0,97909.0,0.89777902]
[1733910324450,8.58e-05,97910.0,97909.0,0.55906607]
[1733910324807,8.58e-05,97910.0,97909.0,0.23294204]
[1733910325006,8.58e-05,97910.0,97909.0,0.23694204]
[1733910325212,8.58e-05,97910.0,97909.0,0.23394204]
[1733910325426,8.58e-05,97910.0,97909.0,0.01590577]
[1733910325845,8.58e-05,97910.0,97909.0,0.01990577]
[1733910326257,8.58e-05,97910.0,97909.0,0.01890577]
[1733910326467,8.58e-05,97910.0,97909.0,0.01590577]
[1733910326712,8.58e-05,97910.0,97909.0,0.00567104]
[1733910326919,8.58e-05,97910.0,97902.0,0.023]
[1733910327325,8.58e-05,97910.0,97903.0,0.00565306]
[1733910328079,0.00702943,97909.0,97903.0,0.00565306]
[1733910328247,0.0020858,97910.0,97903.0,0.00565306]
[1733910328449,0.00702919,97909.0,97903.0,0.00565306]
[1733910328763,0.0020858,97910.0,97903.0,0.00565306]
[1733910328989,0.00702936,97909.0,97903.0,0.00565306]
[1733910329327,0.0020858,97910.0,97903.0,0.00565306]
[1733910329447,0.00702966,97909.0,97904.0,0.204281]
[1733910329644,0.001,97909.0,97905.0,0.00565224]
[1733910330263,0.001,97909.0,97902.0,0.023]
[1733910330478,0.001,97909.0,97903.0,0.20993606]
[1733910330887,0.001,97909.0,97903.0,0.00565306]
[1733910331095,8.58e-05,97910.0,97903.0,0.00565306]
[1733910331298,0.00903056,97909.0,97903.0,0.00565306]
[1733910331498,0.002,97909.0,97903.0,0.00565306]
[1733910331697,0.00703137,97908.0,97903.0,0.00565306]
[1733910331924,0.002,97909.0,97903.0,0.00565306]
[1733910332177,0.00703106,97908.0,97903.0,0.00565306]
[1733910332381,0.0020858,97910.0,97903.0,0.00565306]
[1733910332587,0.00803234,97909.0,97903.0,0.00565306]
[1733910332790,0.00703234,97908.0,97903.0,0.00565306]
[1733910332998,0.001,97908.0,97903.0,0.00565306]
[1733910333674,0.492548,97908.0,97903.0,0.00565306]
[1733910333879,0.204277,97906.0,97903.0,0.00565306]
[1733910334087,0.204277,97906.0,97900.0,0.0040242]
[1733910334088,0.204286,97902.0,97900.0,0.0040242]
[1733910334320,0.204286,97902.0,97901.0,0.00033163]
[1733910334526,0.21131691,97902.0,97901.0,0.00033163]
[1733910336357,0.41109299,97902.0,97901.0,0.00133163]
[1733910336553,0.45769299,97902.0,97901.0,0.00133163]
[1733910336800,0.15,97901.0,97900.0,0.00380087]
[1733910337006,0.34617608,97901.0,97900.0,0.00380087]
[1733910337238,0.35320699,97901.0,97900.0,0.00380087]
[1733910338838,0.35320699,97901.0,97900.0,0.00480087]
[1733910338839,0.35520699,97901.0,97900.0,0.00480087]
[1733910339040,0.65520699,97901.0,97900.0,0.00480087]
[1733910339218,0.65320699,97901.0,97900.0,0.00380087]
[1733910339417,0.66220699,97901.0,97900.0,0.00480087]
[1733910339621,0.66420699,97901.0,97900.0,0.00580087]
[1733910340424,0.51420699,97901.0,97900.0,0.00580087]
[1733910340626,0.66420699,97901.0,97900.0,0.00580087]
[1733910345364,0.51420699,97901.0,97900.0,0.00580087]
[1733910345567,0.66420699,97901.0,97900.0,0.00580087]
[1733910345773,0.65320699,97901.0,97900.0,0.00380087]
[1733910345975,0.65520699,97901.0,97900.0,0.00480087]
[1733910346178,0.66420699,97901.0,97900.0,0.00580087]
[1733910353075,0.51420699,97901.0,97900.0,0.00580087]
[1733910353280,0.66420699,97901.0,97900.0,0.00580087]
[1733910354350,0.66420699,97901.0,97890.0,0.0001716]
[1733910354351,0.430608,97891.0,97890.0,0.0001716]
[1733910354557,0.54296415,97891.0,97890.0,0.0001716]
[1733910354762,0.55421499,97891.0,97890.0,0.0001716]
[1733910355515,0.55621499,97891.0,97890.0,0.0001716]
[1733910355857,0.56521499,97891.0,97890.0,0.0011716]
[1733910356736,0.011,97891.0,97890.0,0.0011716]
[1733910356984,0.02923888,97891.0,97890.0,0.0011716]
[1733910357196,0.011,97891.0,97890.0,0.00687654]
[1733910357411,0.011,97891.0,97890.0,0.0011716]
[1733910357744,0.011,97891.0,97890.0,0.00687654]
[1733910357952,0.009,97891.0,97890.0,0.00587654]
[1733910358148,0.00701495,97901.0,97890.0,0.00587654]
[1733910358379,0.002,97891.0,97890.0,0.14917602]
[1733910358582,0.002,97891.0,97890.0,0.02887654]
[1733910359112,0.00701495,97905.0,97895.0,0.2043]
[1733910359313,0.005,97901.0,97896.0,0.00570249]
[1733910359863,0.00701495,97905.0,97896.0,0.00570249]
[1733910360044,0.204281,97904.0,97896.0,0.00570249]
[1733910360242,0.204281,97904.0,97891.0,0.204308]
[1733910360243,0.00701495,97904.0,97891.0,0.204308]
[1733910360405,0.00701495,97903.0,97897.0,0.00570208]
[1733910360602,0.003,97901.0,97891.0,0.204308]
[1733910360828,0.00701495,97900.0,97898.0,0.00570167]
[1733910361029,0.00701495,97899.0,97891.0,0.204308]
[1733910361251,0.00701495,97906.0,97891.0,0.204308]
[1733910361455,0.003,97904.0,97891.0,0.204308]
[1733910361749,0.005,97901.0,97890.0,0.0001716]
[1733910361958,0.41560773,97900.0,97890.0,0.0001716]
[1733910362157,0.204294,97898.0,97890.0,0.0001716]
[1733910362364,0.00702967,97897.0,97890.0,0.0001716]
[1733910362567,0.204294,97898.0,97890.0,0.0001716]
[1733910362771,0.00702983,97897.0,97890.0,0.0001716]
[1733910362968,0.204294,97898.0,97890.0,0.0001716]
[1733910363268,0.00702948,97897.0,97890.0,0.0021716]
[1733910363466,0.21132748,97896.0,97890.0,0.0021716]
[1733910363707,0.00702948,97895.0,97890.0,0.0021716]
[1733910363906,0.00702948,97894.0,97890.0,0.0021716]
[1733910364056,0.00702948,97893.0,97890.0,0.0021716]
[1733910364260,0.00702948,97892.0,97890.0,0.0021716]
[1733910364523,0.00702948,97891.0,97890.0,0.0021716]
[1733910365709,0.00703382,97891.0,97890.0,0.0021716]
[1733910366078,0.00803382,97891.0,97890.0,0.0021716]
[1733910367385,0.00903382,97891.0,97890.0,0.0021716]
[1733910368006,0.002,97891.0,97890.0,0.08476964]